fUSD/lending_fUSD_20251118
["ID","MTS","AMOUNT","RATE_DAILY","PERIOD"]
[394298452,1763428233898,-1419.2,0.00035,30]
[394298453,1763428233908,-500.0,0.00035173,5]
[394298454,1763428233917,-500.0,0.00035173,5]
[394298455,1763428233927,-166.66,0.00035603,30]
[394298456,1763428233936,-168.0,0.00035679,2]
[394298457,1763428233946,-168.0,0.00036082,2]
[394298458,1763428233956,-168.0,0.00036139,2]
[394298459,1763428233966,-166.66,0.00036295,30]
[394298460,1763428233976,-71560.84037721,0.000363,2]
[394298464,1763428238085,-151.0,0.0002416,2]
[394298465,1763428238095,-151.0,0.0002416,2]
[394298466,1763428238105,-6.55973292,0.0002416,2]
[394298470,1763428240008,-144.44026708,0.0002416,2]
[394298471,1763428240018,-151.0,0.0002416,2]
[394298472,1763428240027,-151.0,0.0002416,2]
[394298473,1763428240036,-151.0,0.0002416,2]
[394298474,1763428240046,-466.75,0.00030288,2]
[394298475,1763428240055,-158.07336197,0.000363,2]
[394298476,1763428240067,-945.09603083,0.000363,2]
[394298477,1763428240082,-319.94463366,0.000363,2]
[394298486,1763428243173,-1313.41559647,0.000363,2]
[394298487,1763428243294,-3221.17001311,0.000363,2]
[394298558,1763428246094,-1405.97081249,0.00032738,2]
[394298559,1763428246424,-392.44368981,0.00032738,2]
[394298560,1763428246483,-720.29999997,0.00032738,2]
[394298572,1763428261722,200.0,0.00041678,30]
[394298573,1763428270284,151.0,0.00041678,30]
[394298574,1763428270408,500.0,0.00041678,30]
[394298575,1763428270934,151.0,0.00041678,30]
[394298576,1763428271034,500.0,0.00041678,30]
[394298577,1763428271568,151.0,0.00041678,30]
[394298578,1763428271684,500.0,0.00041678,30]
[394298580,1763428325015,215.92914439,0.00041678,30]
[394298581,1763428325102,250.0,0.00041678,30]
[394298582,1763428325743,250.0,0.00041678,30]
[394298583,1763428326442,250.0,0.00041678,30]
[394298584,1763428327471,250.0,0.00041678,30]
[394298585,1763428328119,250.0,0.00041678,30]
[394298586,1763428329378,435.54632665,0.00041678,30]
[394298587,1763428331030,250.0,0.00041678,30]
[394298588,1763428331164,500.0,0.00041678,30]
[394298589,1763428331856,500.0,0.00041678,30]
[394298590,1763428333158,1000.0,0.00041678,30]
[394298591,1763428333759,1000.0,0.00041678,30]
[394298592,1763428334396,1000.0,0.00041678,30]
[394298593,1763428335926,414.0,0.00041678,30]
[394298594,1763428342765,200.0,0.00041678,30]
[394298595,1763428343204,300.0,0.00041678,30]
[394298596,1763428349475,250.0,0.00041678,30]
[394298597,1763428350111,250.0,0.00041678,30]
[394298598,1763428350707,250.0,0.00041678,30]
[394298599,1763428351321,250.0,0.00041678,30]
[394298600,1763428351940,250.0,0.00041678,30]
[394298601,1763428358372,151.0,0.00041678,30]
[394298602,1763428379137,8128.45946656,0.00041678,120]
[394298603,1763428393353,250.0,0.00041678,120]
[394298604,1763428448055,160.12855637,0.00041678,120]
[394298605,1763428449707,984.91558281,0.00041678,120]
[394298606,1763428457798,318.3417701,0.00041678,120]
[394298607,1763428499156,3332.35348594,0.00041678,30]
[394298608,1763428560712,200.0,0.00041678,30]
[394298609,1763428643949,200.0,0.00041678,30]
[394298610,1763428644396,300.0,0.00041678,30]
[394298611,1763428860761,200.0,0.00041678,30]
[394298612,1763428943594,200.0,0.00041678,30]
[394298613,1763428944067,300.0,0.00041678,30]
[394298614,1763429054405,1500.0,0.00041678,30]
[394298615,1763429065219,1500.0,0.00041678,30]
[394298616,1763429104520,1500.0,0.00041678,30]
[394298618,1763429160758,200.0,0.00041678,30]
[394298619,1763429164057,1287.13070868,0.00011,2]
[394298621,1763429183009,187.618874,0.000167,2]
[394298622,1763429213305,7126.27806577,0.000162,5]
[394298623,1763429221067,1093.92783441,0.000153,2]
[394298624,1763429225086,1592.18522582,0.00015,2]
[394298625,1763429225107,1004.2623474,0.00015,2]
[394298626,1763429227554,1249.141802,7.945e-05,2]
[394298627,1763429231838,500.0,0.00041678,120]
[394298628,1763429232495,500.0,0.00041678,120]
[394298629,1763429233121,500.0,0.00041678,120]
[394298630,1763429233775,500.0,0.00041678,120]
[394298631,1763429234188,5306.30996289,0.0001305,2]
[394298632,1763429234420,500.0,0.00041678,120]
[394298633,1763429235082,500.0,0.00041678,120]
[394298634,1763429236630,2500.0,0.00041678,120]
[394298641,1763429248117,357.07245339,0.000166,2]
[394298642,1763429248789,-163.20219102,0.00017,2]
[394298644,1763429265107,2083.22343432,0.00013,2]
[394298645,1763429265129,2311.29663952,0.00013,2]
[394298647,1763429276406,1505.5119812,0.00041678,30]
[394298648,1763429277594,1500.0,0.00041678,120]
[394298650,1763429285982,1600.0000005,0.00041678,120]
[394298651,1763429287958,-86.79780898,0.00017,2]
[394298652,1763429287980,-86.395668,0.00017,2]
[394298653,1763429291406,-194.15791756,0.00017,2]
[394298654,1763429293088,-169.32579707,0.00017,2]
[394298655,1763429298395,-300.0,0.00017,2]
[394298656,1763429309346,5000.0,0.00041678,120]
[394298657,1763429311002,272.50933455,0.000154,2]
[394298659,1763429313108,2297.42886975,0.00014999,2]
[394298660,1763429317496,5118.77515618,0.00015,3]
[394298661,1763429317517,4881.23484382,0.00015,3]
[394298662,1763429317988,5118.77515618,0.0001,2]
[394298663,1763429318011,3174.54152598,0.0001,2]
[394298664,1763429319281,300.0066878,0.00041678,30]
[394298665,1763429320962,1344.56654099,0.00013699,2]
[394298667,1763429353909,1500.0,0.00041678,60]
[394298923,1763429401578,368.0,0.00016999,2]
[394298932,1763429412923,782.01318148,0.00041678,120]
[394298943,1763429432236,-36649.44577994,0.00017,2]
[394298944,1763429432266,-666.0,0.00017,2]
[394298948,1763429432565,-1023.14353859,0.00017,2]
[394298949,1763429432576,-9900.0,0.00017,2]
[394298953,1763429433977,-300.0,0.00017,2]
[394298954,1763429434065,-163.34160733,0.00017,2]
[394298955,1763429434149,-163.34160733,0.00017,2]
[394298959,1763429438149,-1972.78274802,0.00017,2]
[394298960,1763429438160,-1318.6106491,0.00017,2]
[394298971,1763429440383,-406.54744794,0.00017,2]
[394298972,1763429440502,-1087.8115798,0.00017,2]
[394299061,1763429443527,-1115.23961659,0.00017,2]
[394299069,1763429446315,-320271.89812032,0.00017,2]
[394299070,1763429446324,-253.9679583,0.0001745,2]
[394299071,1763429446337,-295.37305769,0.00017899,2]
[394299072,1763429446346,-500.0,0.000179,6]
[394299073,1763429446355,-506019.04099523,0.000179,2]
[394299074,1763429446642,-407.02449986,0.000179,2]
[394299075,1763429446654,-647.67,0.000179,2]
[394299079,1763429447655,577.18145619,0.00041678,30]
[394299080,1763429455082,1423.20978291,0.00041678,120]
[394299081,1763429461959,200.0,0.00041678,30]
[394299083,1763429480243,3000.0,0.00041678,120]
[394299090,1763429528758,189.43549693,0.00041678,120]
[394299091,1763429529237,200.0,0.00041678,120]
[394299092,1763429529873,200.0,0.00041678,120]
[394299093,1763429530014,151.0,0.00041678,120]
[394299094,1763429530638,151.0,0.00041678,120]
[394299095,1763429531243,151.0,0.00041678,120]
[394299096,1763429531869,151.0,0.00041678,120]
[394299097,1763429532478,151.0,0.00041678,120]
[394299098,1763429533283,151.0,0.00041678,120]
[394299099,1763429533981,151.0,0.00041678,120]
[394299100,1763429534537,151.0,0.00041678,120]
[394299101,1763429535173,151.0,0.00041678,120]
[394299102,1763429535786,151.0,0.00041678,120]
[394299103,1763429536407,151.0,0.00041678,120]
[394299104,1763429539553,200.0,0.00041678,120]
[394299105,1763429539722,200.0,0.00041678,120]
[394299106,1763429540195,200.0,0.00041678,120]
[394299107,1763429540395,200.0,0.00041678,120]
[394299108,1763429540997,200.0,0.00041678,120]
[394299109,1763429541056,200.0,0.00041678,120]
[394299110,1763429541621,200.0,0.00041678,120]
[394299111,1763429541684,200.0,0.00041678,120]
[394299113,1763429607894,504.99687777,0.00016999,2]
[394299114,1763429608469,9000.0,0.00041678,120]
[394299115,1763429636062,500.0,0.00016999,2]
[394299166,1763429682523,180.50752289,0.00041679,60]
[394299168,1763429761956,200.0,0.00041679,30]
[394299169,1763429765256,781.68,0.00041679,120]
[394299170,1763429790055,152.0,0.00041679,120]
[394299171,1763429866934,500.0,0.00016999,2]
[394299172,1763429885784,6426.66,9.352e-05,2]
[394299173,1763429886034,3573.35,9.844e-05,2]
[394299174,1763429886058,2853.31,9.844e-05,2]
[394299175,1763429886252,6426.66,0.00010337,2]
[394299176,1763429886492,720.04,0.00010829,2]
[394299177,1763429886516,5706.62,0.00010829,2]
[394299178,1763429886704,4293.39,0.00011321,2]
[394299179,1763429886727,2133.27,0.00011321,2]
[394299180,1763429886940,156.66465127,0.00011813,2]
[394299181,1763429886970,6269.99534873,0.00011813,2]
[394299182,1763429887195,1596.74465127,0.00012306,2]
[394299183,1763429887216,4829.91534873,0.00012306,2]
[394299184,1763429887440,5170.09465127,0.00012798,2]
[394299185,1763429887464,1256.56534873,0.00012798,2]
[394299186,1763429887652,6426.66,0.0001329,2]
[394299187,1763429887894,2316.78465127,0.00013782,2]
[394299188,1763429887917,4109.87534873,0.00013782,2]
[394299189,1763429888270,5890.13465127,0.00014274,2]
[394299190,1763429888293,536.52534873,0.00014274,2]
[394299191,1763429888321,508.86276186,0.00016999,2]
[394299192,1763429888358,6426.66,0.00014767,2]
[394299193,1763429888567,2527.96188941,0.00015259,2]
[394299194,1763429888590,3898.69811059,0.00015259,2]
[394299195,1763429888780,6101.31188941,0.00015751,2]
[394299196,1763429888804,325.34811059,0.00015751,2]
[394299197,1763429889023,6426.66,0.00016243,2]
[394299198,1763429889234,3248.00188941,0.00016736,2]
[394299199,1763429896420,-3178.65811059,0.00016736,2]
[394299202,1763429941200,300.0,0.00016999,2]
[394299206,1763429943210,250.19785198,0.00013044,2]
[394299207,1763429943236,3092.49592684,0.00013044,2]
[394299208,1763429943256,3450.13461218,0.00013044,2]
[394299209,1763429977855,500.0,0.00016999,2]
[394299248,1763430021759,2090.82788946,0.00041679,120]
[394299249,1763430061543,200.0,0.00041679,30]
[394299322,1763430327051,166.66,0.00016323,2]
[394299323,1763430327271,166.66,0.00016667,2]
[394299325,1763430397491,1315.03,0.00016967,2]
[394299327,1763430415968,609.8,0.00016967,2]
[394299329,1763430452819,151.0,0.00041679,50]
[394299330,1763430453211,151.0,0.00041679,50]
[394299331,1763430453519,151.0,0.00041679,50]
[394299332,1763430454020,151.0,0.00041679,50]
[394299333,1763430454403,151.0,0.00041679,50]
[394299334,1763430454727,151.0,0.00041679,50]
[394299335,1763430455034,151.0,0.00041679,50]
[394299336,1763430455350,151.0,0.00041679,50]
[394299337,1763430455639,151.0,0.00041679,50]
[394299338,1763430455943,151.0,0.00041679,50]
[394299339,1763430456283,151.0,0.00041679,50]
[394299340,1763430456600,151.0,0.00041679,50]
[394299341,1763430456898,263.644518,0.00041679,50]
[394299367,1763430632427,-312.0,0.0001701,2]
[394299368,1763430632437,-166.66,0.0001701,2]
[394299369,1763430632446,-150.80556463,0.00017131,2]
[394299370,1763430632456,-6426.66,0.00017228,2]
[394299371,1763430632466,-302.42977567,0.00017231,2]
[394299372,1763430632476,-172.89,0.00017341,2]
[394299373,1763430632487,-166.66,0.00017354,2]
[394299374,1763430632496,-1200.0,0.00017573,2]
[394299375,1763430632506,-877.15026966,0.00017692,2]
[394299376,1763430632515,-300.0,0.00017692,2]
[394299377,1763430632525,-300.0,0.00017694,2]
[394299378,1763430632535,-302.0,0.00017695,2]
[394299379,1763430632546,-166.66,0.00017698,2]
[394299380,1763430632557,-600.0,0.000177,6]
[394299381,1763430632568,-166.32671002,0.000177,2]
[394299382,1763430632578,-150.80556463,0.000177,2]
[394299383,1763430632587,-169.81279046,0.000177,2]
[394299384,1763430632597,-6426.66,0.0001772,2]
[394299385,1763430632607,-224.07023849,0.0001772,2]
[394299386,1763430632618,-505.97926991,0.00017773,2]
[394299387,1763430632628,-151.0,0.00017797,2]
[394299388,1763430632637,-550.0,0.00017799,2]
[394299389,1763430632647,-243.73769331,0.00017799,2]
[394299390,1763430632657,-332.23612628,0.00017799,2]
[394299391,1763430632666,-500.0,0.00017799,2]
[394299392,1763430632675,-500.0,0.00017799,2]
[394299393,1763430632685,-500.0,0.00017799,2]
[394299394,1763430632694,-500.0,0.00017799,2]
[394299396,1763430632704,-500.0,0.00017799,2]
[394299398,1763430632713,-500.0,0.00017799,2]
[394299400,1763430632722,-500.0,0.00017799,2]
[394299402,1763430632732,-500.0,0.00017799,2]
[394299404,1763430632741,-500.0,0.00017799,2]
[394299406,1763430632753,-162.38428128,0.00017799,2]
[394299408,1763430632764,-500.0,0.00017799,2]
[394299410,1763430632773,-500.0,0.00017799,2]
[394299412,1763430632783,-500.0,0.00017799,2]
[394299414,1763430632792,-500.0,0.00017799,2]
[394299416,1763430632801,-500.0,0.00017799,2]
[394299417,1763430632810,-500.0,0.00017799,2]
[394299420,1763430632822,-500.0,0.00017799,2]
[394299422,1763430632832,-500.0,0.00017799,2]
[394299424,1763430632842,-500.0,0.00017799,2]
[394299426,1763430632851,-500.0,0.00017799,2]
[394299427,1763430632861,-500.0,0.00017799,2]
[394299430,1763430632871,-500.0,0.00017799,2]
[394299432,1763430632880,-500.0,0.00017799,2]
[394299434,1763430632890,-500.0,0.00017799,2]
[394299436,1763430632899,-4385.12490382,0.000178,2]
[394299438,1763430632910,-258275.7790643,0.000178,2]
[394299440,1763430632922,-10499.26317341,0.000178,2]
[394299443,1763430632941,-5394.5,0.000178,2]
[394299445,1763430632953,-26435.21442287,0.000178,2]
[394299449,1763430632978,-1115.5,0.000178,2]
[394299491,1763430638326,-9918.82051977,0.000178,2]
[394299492,1763430638338,-5346.912,0.000178,2]
[394299493,1763430638350,-5004.35725198,0.000178,2]
[394299494,1763430638361,-3251.415,0.000178,2]
[394299495,1763430638375,-1174.35908992,0.000178,2]
[394299496,1763430638485,-545.44734142,0.000178,2]
[394299498,1763430640424,-396.57700005,0.000178,2]
[394299499,1763430640436,-432641.85513628,0.000178,2]
[394299500,1763430640449,-3518.3548,0.000178,2]
[394299501,1763430640459,-234.8062,0.000178,2]
[394299502,1763430640469,-1200.0,0.000178,6]
[394299503,1763430640478,-281.78743414,0.00017873,2]
[394299504,1763430640487,-502.58209685,0.00017882,2]
[394299505,1763430640497,-151.0,0.00017889,2]
[394299506,1763430640506,-151.0,0.00017889,2]
[394299507,1763430640515,-151.0,0.00017889,2]
[394299508,1763430640524,-151.0,0.00017889,2]
[394299509,1763430640534,-151.0,0.00017889,2]
[394299510,1763430640544,-151.0,0.00017889,2]
[394299511,1763430640553,-151.0,0.00017889,2]
[394299512,1763430640562,-151.0,0.00017889,2]
[394299513,1763430640572,-225.68544447,0.00017889,2]
[394299514,1763430640583,-174.235,0.00017899,2]
[394299515,1763430640592,-1649.948,0.00017899,2]
[394299516,1763430640602,-624.34923293,0.00017899,2]
[394299517,1763430640612,-226.86890665,0.000179,2]
[394299518,1763430640621,-171.74613388,0.000179,2]
[394299519,1763430640631,-1800.0,0.000179,6]
[394299520,1763430640645,-159.70167,0.000179,2]
[394299521,1763430640654,-152.79595565,0.00017941,2]
[394299522,1763430640663,-314.5517297,0.00017941,2]
[394299523,1763430640674,-327.49413513,0.00017973,2]
[394299524,1763430640683,-503.90870723,0.00017973,2]
[394299525,1763430640693,-156.73,0.00017989,2]
[394299526,1763430640702,-151.0,0.00017997,2]
[394299527,1763430640711,-176.04431931,0.00017999,2]
[394299528,1763430640721,-150.0,0.00017999,2]
[394299529,1763430640730,-150.0,0.00017999,2]
[394299530,1763430640739,-500.0,0.00017999,2]
[394299531,1763430640749,-150.0,0.00017999,2]
[394299532,1763430640758,-150.0,0.00017999,2]
[394299533,1763430640768,-500.0,0.00017999,2]
[394299534,1763430640777,-500.0,0.00017999,2]
[394299535,1763430640787,-75361.23150756,0.00018,2]
[394299539,1763430643776,-766.36239535,0.00018,2]
[394299540,1763430643788,-641.99246739,0.00018,2]
[394299547,1763430647928,-1587.03359657,0.00018,2]
[394299548,1763430647941,-3750.73215416,0.00018,2]
[394299549,1763430647952,-3195.42717717,0.00018,2]
[394299550,1763430647963,-6123.10074757,0.00018,2]
[394299551,1763430647975,-255.75,0.00018,2]
[394299552,1763430647986,-506.122,0.00018,2]
[394299553,1763430647997,-403.2039331,0.00018,2]
[394299554,1763430670291,372.254049,0.00041679,120]
[394299555,1763430670327,151.0,0.00041679,31]
[394299556,1763430672557,182.47812,0.00041679,31]
[394299557,1763430676837,151.0,0.00041679,50]
[394299558,1763430677463,151.0,0.00041679,50]
[394299559,1763430678076,151.0,0.00041679,50]
[394299560,1763430678687,151.0,0.00041679,50]
[394299561,1763430679328,151.0,0.00041679,50]
[394299562,1763430679982,151.0,0.00041679,50]
[394299563,1763430680626,151.0,0.00041679,50]
[394299564,1763430681281,151.0,0.00041679,50]
[394299565,1763430681890,151.0,0.00041679,50]
[394299566,1763430682580,151.0,0.00041679,50]
[394299567,1763430683196,151.0,0.00041679,50]
[394299568,1763430693979,200.756716,0.00041679,31]
[394299569,1763430696142,200.756716,0.00041679,31]
[394299570,1763430697333,151.0,0.00041679,31]
[394299571,1763430697742,200.756716,0.00041679,31]
[394299572,1763430698970,151.0,0.00041679,31]
[394299573,1763430699175,826.046797,0.00041679,30]
[394299574,1763430699413,200.756725,0.00041679,31]
[394299575,1763430700834,826.046797,0.00041679,30]
[394299576,1763430702421,826.046797,0.00041679,30]
[394299577,1763430704427,826.046806,0.00041679,30]
[394299578,1763430707913,151.0,0.00041679,31]
[394299579,1763430709583,151.0,0.00041679,31]
[394299584,1763430733472,201.8632948,0.00041679,120]
[394299585,1763430735903,200.0,0.00041679,120]
[394299586,1763430736537,200.0,0.00041679,120]
[394299587,1763430739394,209.43226383,0.00041679,120]
[394299589,1763430874021,5845.14,0.00016438,2]
[394299590,1763430915242,250.0,0.00041679,120]
[394299591,1763430915860,250.0,0.00041679,120]
[394299592,1763430916468,250.0,0.00041679,120]
[394299593,1763430917084,250.0,0.00041679,120]
[394299594,1763430917708,250.0,0.00041679,120]
[394299595,1763430918303,250.0,0.00041679,120]
[394299596,1763430918905,250.0,0.00041679,120]
[394299599,1763430919728,250.0,0.00041679,120]
[394299600,1763430920173,250.0,0.00041679,120]
[394299601,1763430920792,250.0,0.00041679,120]
[394299602,1763430921454,250.0,0.00041679,120]
[394299603,1763430922281,250.0,0.00041679,120]
[394299604,1763430980821,-200.0,0.00017595,2]
[394299605,1763430980854,-4525.80591824,0.000176,2]
[394299606,1763430980883,-500.0,0.00017673,2]
[394299607,1763430980914,-500.0,0.00017673,2]
[394299608,1763430980943,-151.0,0.00017697,2]
[394299609,1763430980972,-300.0,0.00017698,2]
[394299610,1763430981001,-1200.0,0.00017698,2]
[394299611,1763430981030,-300.0,0.00017699,2]
[394299612,1763430981061,-550.0,0.00017699,2]
[394299613,1763430981095,-500.0,0.00017699,2]
[394299614,1763430981130,-500.0,0.00017699,2]
[394299615,1763430981163,-500.0,0.00017699,2]
[394299616,1763430981196,-500.0,0.00017699,2]
[394299617,1763430981229,-500.0,0.00017699,2]
[394299618,1763430981265,-500.0,0.00017699,2]
[394299619,1763430981295,-500.0,0.00017699,2]
[394299620,1763430981327,-500.0,0.00017699,2]
[394299621,1763430981360,-500.0,0.00017699,2]
[394299622,1763430981393,-500.0,0.00017699,2]
[394299623,1763430981424,-500.0,0.00017699,2]
[394299624,1763430981452,-500.0,0.00017699,2]
[394299625,1763430981486,-500.0,0.00017699,2]
[394299626,1763430981514,-500.0,0.00017699,2]
[394299627,1763430981542,-500.0,0.00017699,2]
[394299628,1763430981572,-500.0,0.00017699,2]
[394299629,1763430981602,-500.0,0.00017699,2]
[394299630,1763430981633,-500.0,0.00017699,2]
[394299631,1763430981662,-500.0,0.00017699,2]
[394299632,1763430981693,-500.0,0.00017699,2]
[394299633,1763430981722,-500.0,0.00017699,2]
[394299634,1763430981752,-500.0,0.00017699,2]
[394299635,1763430981783,-320.19408176,0.00017699,2]
[394299636,1763431031790,-410.13992642,0.000176,2]
[394299637,1763431031831,-195.0,0.00017649,2]
[394299638,1763431031876,-430.25131574,0.00017673,2]
[394299639,1763431031915,-502.1925793,0.00017673,2]
[394299640,1763431031955,-501.53317157,0.00017673,2]
[394299641,1763431031995,-300.0,0.00017698,2]
[394299642,1763431032035,-550.0,0.00017698,2]
[394299643,1763431032082,-179.80591824,0.00017699,2]
[394299644,1763431032126,-236.08287074,0.00017699,2]
[394299645,1763431032165,-294.73959081,0.00017699,2]
[394299646,1763431032208,-500.0,0.00017699,2]
[394299647,1763431032247,-500.0,0.00017699,2]
[394299648,1763431032288,-500.0,0.00017699,2]
[394299649,1763431032325,-194.91081096,0.00017699,2]
[394299650,1763431032365,-500.0,0.00017699,2]
[394299651,1763431032411,-523.4926051,0.00017699,2]
[394299652,1763431032450,-500.0,0.00017699,2]
[394299653,1763431032492,-195.14285083,0.00017699,2]
[394299654,1763431032536,-500.0,0.00017699,2]
[394299655,1763431032574,-500.0,0.00017699,2]
[394299656,1763431032612,-500.0,0.00017699,2]
[394299657,1763431032653,-415.94799635,0.00017699,2]
[394299658,1763431032693,-500.0,0.00017699,2]
[394299659,1763431032735,-500.0,0.00017699,2]
[394299660,1763431032773,-547.16593995,0.00017699,2]
[394299661,1763431032812,-255.54444548,0.00017699,2]
[394299662,1763431032855,-552.54859872,0.00017699,2]
[394299663,1763431032899,-552.54859872,0.00017699,2]
[394299664,1763431032943,-552.54859872,0.00017699,2]
[394299665,1763431032988,-552.54859872,0.00017699,2]
[394299666,1763431033030,-552.54859872,0.00017699,2]
[394299667,1763431033073,-552.54859872,0.00017699,2]
[394299668,1763431033116,-552.54859872,0.00017699,2]
[394299669,1763431033159,-552.54859872,0.00017699,2]
[394299670,1763431033218,-552.54859872,0.00017699,2]
[394299671,1763431033462,-552.54859872,0.00017699,2]
[394299672,1763431033510,-552.54859872,0.00017699,2]
[394299673,1763431033554,-552.54859872,0.00017699,2]
[394299674,1763431033599,-552.54859872,0.00017699,2]
[394299675,1763431033642,-552.54859872,0.00017699,2]
[394299676,1763431033688,-552.54859872,0.00017699,2]
[394299677,1763431033740,-552.54859872,0.00017699,2]
[394299678,1763431033783,-552.54859872,0.00017699,2]
[394299679,1763431033828,-552.54859872,0.00017699,2]
[394299680,1763431033870,-552.54859872,0.00017699,2]
[394299681,1763431033914,-552.54859872,0.00017699,2]
[394299682,1763431033959,-552.54859872,0.00017699,2]
[394299683,1763431034004,-552.54859872,0.00017699,2]
[394299684,1763431034050,-552.54859872,0.00017699,2]
[394299685,1763431034096,-552.54859872,0.00017699,2]
[394299686,1763431034140,-552.54859872,0.00017699,2]
[394299687,1763431034185,-552.54859872,0.00017699,2]
[394299688,1763431034234,-552.54859872,0.00017699,2]
[394299689,1763431034276,-552.54859872,0.00017699,2]
[394299690,1763431034321,-552.54859872,0.00017699,2]
[394299691,1763431034368,-552.54859872,0.00017699,2]
[394299692,1763431034414,-552.54859872,0.00017699,2]
[394299693,1763431034458,-552.54859872,0.00017699,2]
[394299694,1763431034503,-552.54859872,0.00017699,2]
[394299695,1763431034545,-552.54859872,0.00017699,2]
[394299696,1763431034587,-552.54859872,0.00017699,2]
[394299697,1763431034628,-552.54859872,0.00017699,2]
[394299698,1763431034671,-552.54859872,0.00017699,2]
[394299699,1763431034713,-552.54859872,0.00017699,2]
[394299700,1763431034757,-552.54859872,0.00017699,2]
[394299701,1763431034800,-552.54859872,0.00017699,2]
[394299702,1763431034841,-552.54859872,0.00017699,2]
[394299703,1763431034883,-552.54859872,0.00017699,2]
[394299704,1763431034926,-552.54859872,0.00017699,2]
[394299705,1763431034971,-552.54859872,0.00017699,2]
[394299706,1763431035014,-552.54859872,0.00017699,2]
[394299707,1763431035057,-552.54859872,0.00017699,2]
[394299708,1763431035248,-523.22969349,0.00017699,2]
[394299709,1763431035293,-523.22969349,0.00017699,2]
[394299710,1763431035336,-523.22969349,0.00017699,2]
[394299711,1763431035384,-523.22969349,0.00017699,2]
[394299712,1763431035429,-523.22969349,0.00017699,2]
[394299713,1763431035472,-523.22969349,0.00017699,2]
[394299714,1763431035516,-523.22969349,0.00017699,2]
[394299715,1763431035560,-523.22969349,0.00017699,2]
[394299716,1763431035609,-523.22969349,0.00017699,2]
[394299717,1763431035652,-523.22969349,0.00017699,2]
[394299718,1763431035696,-523.22969349,0.00017699,2]
[394299719,1763431035739,-523.22969349,0.00017699,2]
[394299720,1763431035783,-523.22969349,0.00017699,2]
[394299721,1763431035826,-523.22969349,0.00017699,2]
[394299722,1763431035869,-523.22969349,0.00017699,2]
[394299723,1763431035916,-523.22969349,0.00017699,2]
[394299724,1763431035961,-523.22969349,0.00017699,2]
[394299725,1763431036009,-523.22969349,0.00017699,2]
[394299726,1763431036055,-523.22969349,0.00017699,2]
[394299727,1763431036098,-523.22969349,0.00017699,2]
[394299728,1763431036136,-234.8062,0.000177,2]
[394299729,1763431036176,-280.3589,0.000177,2]
[394299730,1763431036217,-760000.0,0.000177,2]
[394299731,1763431036254,-15222.6718,0.000177,2]
[394299732,1763431036292,-3518.3548,0.000177,2]
[394299733,1763431036333,-195.0,0.00017736,2]
[394299734,1763431036376,-151.0,0.00017833,2]
[394299735,1763431036422,-94668.5425942,0.00017836,2]
[394299736,1763431036462,-37678.1276508,0.00017836,2]
[394299737,1763431036707,-410.13992642,0.00017836,2]
[394299738,1763431036719,-195.0,0.00017836,2]
[394299739,1763431036731,-430.25131574,0.00017836,2]